bitfinex/quotes_SOLUSD_20241005
["timestamp","ask_amount","ask_price","bid_price","bid_amount"]
[1728143114430,5.72491832,143.01,142.99,50.0]
[1728143114599,5.72491832,143.01,142.99,56.9933]
[1728143115990,5.72491832,143.01,143.0,6.993]
[1728143120311,5.72491832,143.01,143.0,77.24398]
[1728143120517,5.72491832,143.01,143.0,91.71267051]
[1728143120813,5.72491832,143.01,143.0,107.53967051]
[1728143123223,1.832e-05,143.01,143.0,131.31655451]
[1728143123422,0.5513096,143.12,143.07,56.9892]
[1728143123600,0.5513096,143.12,143.08,1.39754124]
[1728143124331,0.5513096,143.12,143.09,17.4711]
[1728143124863,0.5513096,143.12,143.09,67.4711]
[1728143125320,0.5513096,143.12,143.1,1.39735515]
[1728143125504,0.5513096,143.12,143.09,67.4711]
[1728143125897,0.5513096,143.12,143.1,6.988]
[1728143126199,0.5513096,143.12,143.1,8.38528645]
[1728143126831,0.5513096,143.12,143.1,58.38528645]
[1728143128734,0.5513096,143.12,143.1,56.988]
[1728143128940,0.5513096,143.12,143.11,1.39728672]
[1728143129140,0.5513096,143.12,143.11,8.38488672]
[1728143129934,0.5513096,143.12,143.09,67.4711]
[1728143130433,7.5388096,143.12,143.09,50.0]
[1728143130743,7.5388096,143.12,143.07,56.9894]
[1728143132937,6.9876,143.11,143.07,50.0]
[1728143134846,6.9876,143.11,143.06,6.9896]
[1728143135438,6.9876,143.11,143.06,56.9896]
[1728143136418,6.9876,143.11,143.07,50.0]
[1728143137646,6.9876,143.11,143.06,56.9896]
[1728143139148,7.5385096,143.12,143.07,6.9894]
[1728143139865,7.5385096,143.12,143.07,56.9894]
[1728143143751,6.9877,143.11,143.07,50.0]
[1728143143939,6.9881,143.1,143.06,6.9899]
[1728143144247,6.9877,143.11,143.06,6.9899]
[1728143145147,6.9877,143.11,143.06,56.9899]
[1728143148033,6.9877,143.11,143.07,8.38704924]
[1728143148233,6.9877,143.11,143.07,58.38704924]
[1728143149836,6.9877,143.11,143.07,56.9894]
[1728143152341,9.28545702,143.12,143.07,56.9894]
[1728143153744,6.9881,143.1,143.05,90.1181]
[1728143154250,6.9881,143.1,143.06,6.9899]
[1728143154738,2.29825702,143.12,143.06,6.9899]
[1728143154739,6.9877,143.11,143.06,56.9899]
[1728143159048,6.9877,143.11,143.06,58.38750796]
[1728143159250,6.9877,143.11,143.06,56.9899]
[1728143159957,6.9877,143.11,143.06,6.9899]
[1728143160854,6.9886,143.09,143.05,74.4662]
[1728143161057,6.9891,143.08,143.05,17.4757]
[1728143161558,7.1339096,143.12,143.02,24.4712]
[1728143161559,8.73701776,143.07,143.02,24.4712]
[1728143161760,6.9897,143.07,143.03,30.0]
[1728143161972,8.73719142,143.07,143.03,30.0]
[1728143162260,8.73719142,143.07,143.02,24.4712]
[1728143165368,8.73719142,143.07,143.03,6.9914]
[1728143174368,6.9902,143.06,143.02,67.4793]
[1728143174549,1.74775703,143.05,143.0,56.9926]
[1728143174746,8.73830284,143.06,143.01,8.39054227]
[1728143174948,8.73830284,143.06,143.01,6.9923]
[1728143175567,6.9905,143.06,143.01,6.9923]
[1728143175770,8.24075218,143.07,143.02,56.9918]
[1728143175943,15.23035218,143.07,143.02,56.9918]
[1728143178274,23.776884,143.06,143.01,24.4729]
[1728143178567,8.7383131,143.05,143.01,17.4805]
[1728143178776,6.9915,143.04,143.0,50.0]
[1728143178946,6.9915,143.04,143.0,56.9929]
[1728143179270,6.9915,143.04,143.0,6.9929]
[1728143185375,6.9915,143.04,142.99,50.0]
[1728143185677,6.9915,143.04,142.99,56.9934]
[1728143187652,6.9915,143.04,143.0,1.39832109]
[1728143187857,6.9915,143.04,143.0,8.39122109]
[1728143188373,6.9915,143.04,143.0,6.9929]
[1728143191178,6.9915,143.04,143.0,8.39122082]
[1728143191972,6.9915,143.04,143.0,6.9929]
[1728143192171,6.9907,143.05,143.0,6.9929]
[1728143193084,6.9907,143.05,143.0,56.9929]
[1728143195384,6.991,143.04,143.0,56.9929]
[1728143198380,6.991,143.04,143.0,6.9929]
[1728143198580,6.991,143.04,143.0,56.9929]
[1728143199482,6.9924,143.02,142.96,74.77884977]
[1728143199693,6.9926,143.01,142.96,81.77374977]
[1728143203665,8.74076332,143.01,142.96,81.77374977]
[1728143203869,8.74076332,143.01,142.96,24.4817]
[1728143204201,6.9932,143.0,142.96,24.4817]
[1728143204382,6.9932,143.0,142.96,17.4868]
[1728143208895,6.9932,143.0,142.96,67.4868]
[1728143209075,6.9925,143.01,142.96,75.87988328]
[1728143209488,6.9925,143.01,142.96,74.4812]
[1728143210397,6.9925,143.01,142.96,24.4812]
[1728143210597,6.9925,143.01,142.96,74.4812]
[1728143219818,6.9931,143.0,142.96,74.4812]
[1728143220116,6.9931,143.0,142.96,24.4812]
[1728143220302,6.9926,143.01,142.96,24.4812]
[1728143221123,6.9926,143.01,142.96,74.4812]
[1728143224621,1.74828334,143.0,142.96,74.4812]
[1728143225615,1.74828334,143.0,142.96,24.4812]
[1728143226494,8.74094681,143.01,142.97,1.39867744]
[1728143226890,8.74094681,143.01,142.96,74.4812]
[1728143227608,6.9926,143.01,142.96,74.4812]
[1728143229017,1.74835694,143.0,142.96,74.4812]
[1728143229819,8.74135694,143.0,142.96,17.4868]
[1728143230127,6.993,143.0,142.96,24.4816]
[1728143230918,6.993,143.0,142.96,74.4816]
[1728143231715,1.74835661,143.02,142.97,1.3987012]
[1728143232024,6.1075,143.03,142.98,67.4843]
[1728143232195,6.1075,143.03,142.99,6.9933]
[1728143232614,14.84705683,143.03,142.98,74.4781]
[1728143232923,14.84705683,143.03,142.98,24.4781]
[1728143233798,14.84705683,143.03,142.98,74.4781]
[1728143234199,14.84705683,143.03,142.98,67.4843]
[1728143234200,6.1075,143.03,142.98,67.4843]
[1728143234401,15.0134,143.04,143.0,6.9929]
[1728143234603,15.0134,143.04,143.01,1.39830495]
[1728143235596,15.0134,143.04,143.0,6.9929]
[1728143238425,15.0134,143.04,143.0,8.39122341]
[1728143238815,15.0134,143.04,143.0,6.9929]
[1728143241824,15.0134,143.04,142.99,50.0]
[1728143242038,15.0134,143.04,143.01,6.9921]
[1728143242326,15.0134,143.04,143.0,17.4819]
[1728143242512,22.0044,143.04,143.0,17.4819]
[1728143245832,22.0044,143.04,143.0,74.4748]
[1728143247139,22.0044,143.04,143.0,24.4748]
[1728143247437,8.73955746,143.03,142.98,50.0]
[1728143247628,6.9917,143.03,142.98,50.0]
[1728143247827,6.9917,143.03,142.99,56.9934]
[1728143248723,8.73966652,143.03,142.99,56.9934]
[1728143248931,8.73966652,143.03,142.99,6.9934]
[1728143249235,6.9917,143.03,142.99,6.9934]
[1728143252140,6.9917,143.03,142.99,56.9934]
[1728143253033,22.0045,143.04,143.0,6.9928]
[1728143253245,22.0045,143.04,143.01,1.39829547]
[1728143254837,13.3196,143.07,143.02,56.9916]
[1728143255023,13.3196,143.07,143.03,1.39810048]
[1728143255735,6.3299,143.07,143.03,18.87630048]
[1728143256047,8.07741736,143.07,143.04,6.9909]
[1728143256341,8.07741736,143.07,143.03,24.4696]
[1728143258134,6.3299,143.07,143.03,24.4696]
[1728143258516,15.5962,143.08,143.03,17.4782]
[1728143258722,15.5962,143.08,143.04,58.3886135]
[1728143258915,8.00791665,143.11,143.04,51.3980135]
[1728143259111,6.9882,143.1,143.05,6.9904]
[1728143259311,6.9882,143.1,143.06,1.39785728]
[1728143260224,6.9886,143.09,143.06,1.39785728]
[1728143262143,8.73592284,143.09,143.04,56.9909]
[1728143264937,6.9886,143.09,143.04,56.9909]
[1728143265441,6.2604,143.11,143.07,6.9895]
[1728143265442,6.9877,143.11,143.07,6.9895]
[1728143265638,6.9877,143.11,143.07,8.38710553]
[1728143266030,23.1347096,143.12,143.07,8.38710553]
[1728143266225,23.1347096,143.12,143.07,56.9895]
[1728143266540,8.73457333,143.11,143.07,56.9895]
[1728143266734,8.73457333,143.11,143.07,50.0]
[1728143266952,8.73457333,143.11,143.05,17.4758]
[1728143266953,6.9881,143.1,143.06,6.99]
[1728143269446,6.9881,143.1,143.06,56.99]
[1728143269645,23.1347096,143.12,143.07,6.9894]
[1728143270533,23.1347096,143.12,143.07,56.9894]
[1728143270827,7.5385096,143.12,143.07,56.9894]
[1728143272622,7.5385096,143.12,143.07,6.9894]
[1728143273439,6.9876,143.11,143.07,6.9894]
[1728143274749,6.9876,143.11,143.07,56.9894]
[1728143280164,6.9876,143.11,143.07,6.9894]
[1728143282336,6.9876,143.11,143.07,56.9894]
[1728143285051,6.9876,143.11,143.07,50.0]
[1728143285559,6.9876,143.11,143.06,56.9899]
[1728143307678,2.29822873,143.12,143.1,50.0]
[1728143307679,0.5513096,143.12,143.1,50.0]
[1728143307874,0.5513096,143.12,143.11,1.39730191]
[1728143308180,0.5513096,143.12,143.11,58.38490191]
[1728143308357,0.5513096,143.12,143.11,56.9876]
[1728143309965,0.5513096,143.12,143.11,50.0]
[1728143310454,0.5513096,143.12,143.1,56.988]
[1728143315280,0.5513096,143.12,143.09,17.471]
[1728143317863,0.5513096,143.12,143.09,67.471]
[1728143318877,0.5513096,143.12,143.1,1.39742019]
[1728143322989,0.5513096,143.12,143.09,67.471]
[1728143326093,0.5513096,143.12,143.09,17.471]
[1728143326289,0.5513096,143.12,143.09,67.471]
[1728143327595,0.5513096,143.12,143.1,1.39741951]
[1728143329293,0.5513096,143.12,143.09,67.471]
[1728143331309,0.5513096,143.12,143.1,6.988]
[1728143331475,0.5513096,143.12,143.1,56.988]
[1728143340508,0.5513096,143.12,143.09,17.471]
[1728143340684,6.9877,143.11,143.06,90.2611]
[1728143340894,0.5513096,143.12,143.07,1.39764978]
[1728143341085,0.5513096,143.12,143.08,50.0]
[1728143341292,0.5513096,143.12,143.09,6.9885]
[1728143341705,0.5513096,143.12,143.1,50.0]
[1728143341915,0.5513096,143.12,143.11,6.9876]
[1728143342296,0.5513096,143.12,143.11,56.9876]
[1728143344107,0.5513096,143.12,143.11,50.0]
[1728143344586,0.5513096,143.12,143.1,74.4576]
[1728143346304,0.5513096,143.12,143.1,67.4696]
[1728143346607,0.5513096,143.12,143.07,74.4628]
[1728143347388,7.5385096,143.12,143.08,6.989]
[1728143347703,0.5513096,143.12,143.08,56.989]
[1728143348190,0.5513096,143.12,143.09,6.9885]
[1728143355815,0.5513096,143.12,143.1,50.0]
[1728143356114,0.5513096,143.12,143.1,56.988]
[1728143356489,0.5513096,143.12,143.11,1.39728435]
[1728143356689,0.5513096,143.12,143.1,56.988]
[1728143360894,0.5513096,143.12,143.11,8.38482258]
[1728143361099,0.5513096,143.12,143.11,6.9876]
[1728143361693,0.5513096,143.12,143.11,56.9876]
[1728143364191,0.5513096,143.12,143.11,58.38471246]
[1728143364699,0.5513096,143.12,143.11,56.9876]
[1728143376528,0.5513096,143.12,143.11,6.9876]
[1728143379840,0.5513096,143.12,143.11,56.9876]
[1728143381829,0.5513096,143.12,143.11,6.9876]
[1728143382931,0.5513096,143.12,143.11,56.9876]
[1728143385530,0.5513096,143.12,143.11,58.38477945]
[1728143385827,0.5513096,143.12,143.11,56.9876]
[1728143387548,0.5513096,143.12,143.11,58.38458981]
[1728143387940,0.5513096,143.12,143.11,57.11309]
[1728143389217,0.5513096,143.12,143.11,58.63548905]
[1728143389423,0.5513096,143.12,143.11,115.23746459]
[1728143390228,0.5513096,143.12,143.11,113.84058]
[1728143390441,0.5513096,143.12,143.11,115.23731533]
[1728143393024,0.5513096,143.12,143.11,113.84058]
[1728143393336,0.5513096,143.12,143.11,139.01422895]
[1728143393523,0.5513096,143.12,143.11,137.617464]
[1728143395439,1e-08,143.12,143.11,137.617464]
[1728143396752,1e-08,143.12,143.11,150.68815545]
[1728143399240,1e-08,143.12,143.11,126.66029145]
[1728143399619,1e-08,143.12,143.11,113.5896]
[1728143399931,1e-08,143.12,143.11,86.9876]
[1728143400618,1e-08,143.12,143.11,56.9876]
[1728143402343,1e-08,143.12,143.11,50.0]
[1728143403017,1e-08,143.12,143.1,56.988]
[1728143405246,1e-08,143.12,143.11,56.9876]
[1728143406739,1e-08,143.12,143.11,57.11309]
[1728143406934,1e-08,143.12,143.11,57.23858]
[1728143408338,1e-08,143.12,143.11,77.23858]
[1728143409040,1e-08,143.12,143.11,118.68706895]
[1728143409244,1e-08,143.12,143.11,147.290364]
[1728143412347,1e-08,143.12,143.11,160.36105545]
[1728143417954,1e-08,143.12,143.11,147.290364]
[1728143418140,1e-08,143.12,143.11,160.36105545]
[1728143419959,1e-08,143.12,143.11,136.58417145]
[1728143422748,1e-08,143.12,143.11,107.23858]
[1728143423461,1e-08,143.12,143.11,77.23858]
[1728143424158,1e-08,143.12,143.11,56.9876]
[1728143430166,1e-08,143.12,143.11,50.0]
[1728143430341,1e-08,143.12,143.1,6.988]
[1728143431963,1e-08,143.12,143.09,17.4709]
[1728143432640,6.9877,143.11,143.06,74.4643]
[1728143432845,29.5072,143.11,143.07,6.9894]
[1728143433151,22.5195,143.11,143.06,67.4747]
[1728143433450,1e-08,143.12,143.11,56.9876]
[1728143437268,1e-08,143.12,143.1,6.988]
[1728143438051,1e-08,143.12,143.09,6.9885]
[1728143438953,1e-08,143.12,143.11,56.9876]
[1728143443974,1e-08,143.12,143.11,58.38473378]
[1728143444478,1e-08,143.12,143.11,56.9876]
[1728143447900,1e-08,143.12,143.11,78.63562002]
[1728143448057,1e-08,143.12,143.11,90.30927145]
[1728143449388,1e-08,143.12,143.11,77.11309]
[1728143449677,1e-08,143.12,143.11,107.11309]
[1728143449869,1e-08,143.12,143.11,77.11309]
[1728143453792,1e-08,143.12,143.11,91.70624699]
[1728143453981,1e-08,143.12,143.11,90.30927145]
[1728143456263,1e-08,143.12,143.11,120.30927145]
[1728143457065,1e-08,143.12,143.11,107.23858]
[1728143457280,1e-08,143.12,143.11,107.11309]
[1728143460482,1e-08,143.12,143.11,86.9876]
[1728143463188,1e-08,143.12,143.11,56.9876]
[1728143472890,1e-08,143.12,143.11,57.11309]
[1728143474079,1e-08,143.12,143.11,56.9876]
[1728143479337,1e-08,143.12,143.11,57.11309]
[1728143482011,1e-08,143.12,143.11,56.9876]
[1728143483731,1e-08,143.12,143.11,100.75719151]
[1728143484108,1e-08,143.12,143.11,124.53407551]
[1728143484309,1e-08,143.12,143.11,123.13703674]
[1728143485144,1e-08,143.12,143.11,124.53371025]
[1728143486024,1e-08,143.12,143.11,123.13703674]
[1728143486431,1e-08,143.12,143.11,115.48282935]
[1728143486645,1e-08,143.12,143.11,114.08615545]
[1728143488245,1e-08,143.12,143.11,115.48283481]
[1728143489347,21.5636,143.23,143.19,50.0]
[1728143489551,21.5636,143.23,143.2,58.37926684]
[1728143489717,22.4109054,143.26,143.24,6.9808]
[1728143489914,22.4109054,143.26,143.24,1.39609439]
[1728143490441,22.4109054,143.26,143.24,56.9811]
[1728143491235,0.8473054,143.26,143.25,8.37681757]
[1728143491746,0.3473054,143.26,143.25,58.37681757]
[1728143498047,0.3473054,143.26,143.25,56.9808]
[1728143499153,0.3473054,143.26,143.23,50.0]
[1728143499836,0.3473054,143.26,143.25,50.0]
[1728143501321,0.3473054,143.26,143.25,58.37665539]
[1728143502326,0.3473054,143.26,143.25,8.37665539]
[1728143502526,0.3473054,143.26,143.25,58.37665539]
[1728143506650,0.3473054,143.26,143.25,58.62763539]
[1728143507036,0.3473054,143.26,143.25,57.23178]
[1728143507243,0.3473054,143.26,143.25,70.30247145]
[1728143508857,0.3473054,143.26,143.25,100.30247145]
[1728143511054,0.3473054,143.26,143.25,50.30247145]
[1728143511376,0.3473054,143.26,143.25,100.30247145]
[1728143512772,0.3473054,143.26,143.25,101.69790888]
[1728143513134,0.3473054,143.26,143.25,145.47479288]
[1728143513444,0.3473054,143.26,143.25,144.07935545]
[1728143515564,0.3473054,143.26,143.25,131.008664]
[1728143515857,0.3473054,143.26,143.25,144.07935545]
[1728143520261,0.3473054,143.26,143.25,107.23178]
[1728143520469,0.3473054,143.26,143.25,121.69796286]
[1728143520958,0.3473054,143.26,143.25,80.0]
[1728143521137,0.3473054,143.26,143.25,50.0]
[1728143522361,0.3473054,143.26,143.25,56.9808]
[1728143524846,0.3473054,143.26,143.25,6.9808]
[1728143525167,0.3473054,143.26,143.25,56.9808]
[1728143526955,0.3473054,143.26,143.25,57.23178]
[1728143529675,0.3473054,143.26,143.25,82.40419646]
[1728143530544,0.3473054,143.26,143.25,81.008664]
[1728143530867,0.3473054,143.26,143.25,82.40404283]
[1728143531239,0.3473054,143.26,143.25,102.40404283]
[1728143531447,0.3473054,143.26,143.25,101.008664]
[1728143531748,0.3473054,143.26,143.25,102.40396964]
[1728143532473,0.3473054,143.26,143.25,132.40396964]
[1728143534055,0.3473054,143.26,143.25,131.008664]
[1728143536376,0.3473054,143.26,143.25,101.008664]
[1728143536874,0.3473054,143.26,143.25,114.07935545]
[1728143539263,0.3473054,143.26,143.25,144.07935545]
[1728143543264,0.3473054,143.26,143.25,131.008664]
[1728143543467,0.3473054,143.26,143.25,120.30247145]
[1728143544673,0.3473054,143.26,143.25,107.23178]
[1728143545569,0.3473054,143.26,143.25,144.07935545]
[1728143546171,0.3473054,143.26,143.25,120.30247145]
[1728143547868,0.3473054,143.26,143.25,90.30247145]
[1728143551080,0.3473054,143.26,143.25,120.30247145]
[1728143554087,0.3473054,143.26,143.25,86.9808]
[1728143554485,0.3473054,143.26,143.25,56.9808]
[1728143554671,0.3473054,143.26,143.25,58.37645042]
[1728143555377,0.3473054,143.26,143.25,58.62743042]
[1728143555881,0.3473054,143.26,143.25,88.62743042]
[1728143556412,0.3473054,143.26,143.25,81.39565042]
[1728143556993,0.3473054,143.26,143.25,50.0]
[1728143559406,0.3473054,143.26,143.24,50.0]
[1728143560278,0.3473054,143.26,143.23,6.9817]
[1728143560483,0.3473054,143.26,143.24,50.0]
[1728143561492,0.3473054,143.26,143.23,56.9817]
[1728143561875,0.3473054,143.26,143.25,50.0]
[1728143575109,0.3473054,143.26,143.25,58.37661148]
[1728143577006,0.3473054,143.26,143.25,56.9808]
[1728143583707,0.3473054,143.26,143.25,58.6274897]
[1728143583914,0.3473054,143.26,143.25,71.69818115]
[1728143584816,0.3473054,143.26,143.25,57.23178]
[1728143585300,0.3473054,143.26,143.25,57.10629]
[1728143585504,0.3473054,143.26,143.25,56.9808]
[1728143588617,0.3473054,143.26,143.25,57.23178]
[1728143588804,0.3473054,143.26,143.25,58.62736797]
[1728143589207,0.3473054,143.26,143.25,57.23178]
[1728143590822,0.3473054,143.26,143.25,58.62734862]
[1728143591930,0.3473054,143.26,143.25,88.62734862]
[1728143592226,0.3473054,143.26,143.25,58.62734862]
[1728143592429,0.3473054,143.26,143.25,57.23178]
[1728143596734,0.3473054,143.26,143.25,7.23178]
[1728143597038,0.3473054,143.26,143.25,57.23178]
[1728143598620,0.3473054,143.26,143.25,50.0]
[1728143603541,0.3473054,143.26,143.25,56.9808]
[1728143605533,0.3473054,143.26,143.25,6.9808]
[1728143605723,0.3473054,143.26,143.24,56.9812]
[1728143606330,0.3473054,143.26,143.25,50.0]
[1728143610037,0.3473054,143.26,143.25,57.10629]
[1728143610612,0.3473054,143.26,143.25,7.10629]
[1728143610826,0.3473054,143.26,143.25,57.10629]
[1728143611447,0.3473054,143.26,143.25,57.23178]
[1728143613142,0.3473054,143.26,143.25,87.23178]
[1728143616651,0.3473054,143.26,143.25,120.30247145]
[1728143622249,0.3473054,143.26,143.25,121.69810311]
[1728143622848,0.3473054,143.26,143.25,120.30247145]
[1728143623445,0.3473054,143.26,143.25,107.23178]
[1728143623653,0.3473054,143.26,143.25,120.30247145]
[1728143624160,0.3473054,143.26,143.25,80.0]
[1728143625565,0.3473054,143.26,143.25,50.0]
[1728143629470,0.3473054,143.26,143.25,51.39594208]
[1728143629851,0.3473054,143.26,143.25,58.37674208]
[1728143631977,0.3473054,143.26,143.25,56.9808]
[1728143633672,0.3473054,143.26,143.25,50.0]
[1728143633969,0.3473054,143.26,143.24,6.9811]
[1728143634478,0.3473054,143.26,143.24,56.9811]
[1728143639868,0.3473054,143.26,143.24,6.9811]
[1728143640058,0.3473054,143.26,143.24,56.9811]
[1728143641373,0.3473054,143.26,143.25,6.9808]
[1728143645383,0.3473054,143.26,143.24,50.0]
[1728143645568,0.3473054,143.26,143.23,17.4537]
[1728143645569,7.3276054,143.26,143.23,17.4537]
[1728143647066,6.9813,143.24,143.2,67.4573]
[1728143647267,1.74552779,143.23,143.2,67.4573]
[1728143647472,1.74552779,143.23,143.2,17.4573]
[1728143648168,6.9813,143.24,143.2,17.4573]
[1728143648365,1.74557329,143.23,143.2,17.4573]
[1728143648566,6.9813,143.24,143.2,17.4573]
[1728143649198,6.9813,143.24,143.2,24.4405]
[1728143649769,30.757684,143.25,143.2,24.4405]
[1728143650089,1.74549553,143.24,143.2,24.4405]
[1728143650678,1.74549553,143.24,143.2,74.4405]
[1728143651480,1.74549553,143.24,143.21,6.9827]
[1728143651873,7.3276054,143.26,143.21,6.9827]
[1728143652072,1.74538768,143.25,143.21,6.9827]
[1728143652674,1.74538768,143.25,143.21,56.9827]
[1728143654397,0.3473054,143.26,143.23,6.9813]
[1728143654567,0.3473054,143.26,143.23,56.9813]
[1728143657089,0.3473054,143.26,143.23,6.9813]
[1728143658676,0.3473054,143.26,143.23,56.9813]
[1728143659276,0.3473054,143.26,143.23,6.9813]
[1728143660206,0.3473054,143.26,143.23,56.9813]
[1728143667705,0.3473054,143.26,143.24,6.9812]
[1728143668403,0.3473054,143.26,143.23,6.9817]
[1728143668785,2.09248802,143.26,143.23,6.9817]
[1728143669009,2.09248802,143.26,143.22,17.4549]
[1728143669289,2.09248802,143.26,143.22,24.437]
[1728143683995,23.776884,143.25,143.22,17.4549]
[1728143684191,1.7455188,143.24,143.22,17.4549]
[1728143684397,6.982,143.23,143.19,67.4588]
[1728143684610,1.74560791,143.22,143.19,74.4424]
[1728143684994,1.74560791,143.22,143.19,24.4424]
[1728143685426,1.74566592,143.23,143.19,24.4424]
[1728143685718,1.74566592,143.23,143.2,6.9831]
[1728143686096,21.6218,143.25,143.22,6.9821]
[1728143688225,1.74539191,143.24,143.22,6.9821]
[1728143689620,21.6218,143.25,143.22,6.9821]
[1728143690222,7.3276054,143.26,143.22,6.9821]
[1728143690421,1.74538719,143.25,143.22,6.9821]
[1728143690611,1.74538719,143.25,143.21,17.4562]
[1728143690612,6.20854461,143.24,143.21,17.4562]
[1728143690817,1.74559441,143.23,143.21,17.4562]
[1728143692939,8.72769441,143.23,143.18,74.4439]
[1728143693129,8.72769441,143.23,143.18,24.4439]
[1728143693430,6.9827,143.21,143.17,6.9845]
[1728143693637,1.74602047,143.2,143.17,6.9845]
[1728143697442,1.74592527,143.21,143.17,6.9845]
[1728143697732,1.74592527,143.21,143.17,56.9845]
[1728143700013,1.74592527,143.21,143.17,6.9845]
[1728143702236,8.72862527,143.21,143.17,6.9845]
[1728143713138,1.74592527,143.21,143.17,8.38133372]
[1728143714245,1.74592527,143.21,143.17,6.9845]
[1728143716945,8.72788953,143.23,143.19,6.9836]
[1728143726850,8.72788953,143.23,143.18,50.0]
[1728143727039,8.72788953,143.23,143.18,6.9841]
[1728143727348,6.9825,143.22,143.18,6.9841]
[1728143727653,1.74578539,143.21,143.18,6.9841]
[1728143728034,30.760484,143.2,143.15,6.9855]
[1728143728242,6.9843,143.18,143.14,24.4507]
[1728143728441,1.7463305,143.17,143.14,24.4507]
[1728143729129,6.32640879,143.16,143.14,24.4507]
[1728143729435,15.05866989,143.15,143.11,17.4685]
[1728143729629,8.07303831,143.14,143.11,17.4685]
[1728143729848,6.32640879,143.13,143.11,17.4685]
[1728143730051,6.32640879,143.12,143.11,17.4685]
[1728143730251,6.32640879,143.12,143.1,6.988]
[1728143730488,6.9862,143.14,143.09,50.0]
[1728143730754,6.32836037,143.11,143.08,24.4608]
[1728143730931,32.51043074,143.13,143.08,24.4608]
[1728143730932,30.763584,143.13,143.08,24.4608]
[1728143731127,30.763584,143.13,143.08,74.4608]
[1728143731333,6.9872,143.12,143.08,17.4722]
[1728143731540,6.9872,143.12,143.06,50.0]
[1728143731541,31.85246658,143.11,143.06,50.0]
[1728143731739,25.52408838,143.11,143.06,56.9897]
[1728143732125,6.45705424,143.1,143.06,6.9897]
[1728143732335,1.74721229,143.09,143.06,6.9897]
[1728143732536,1.74721229,143.1,143.06,6.9897]
[1728143733144,6.9872,143.12,143.07,6.9894]
[1728143733344,8.20141728,143.11,143.07,6.9894]
[1728143733641,1.74710705,143.11,143.07,6.9894]
[1728143734357,23.776884,143.11,143.07,6.9894]
[1728143734537,23.776884,143.09,143.05,17.4762]
[1728143734737,1.74746825,143.08,143.05,24.4667]
[1728143735933,6.9876,143.11,143.06,6.99]
[1728143736264,1.74731826,143.1,143.06,6.99]
[1728143737335,23.776884,143.09,143.05,24.4667]
[1728143737531,1.74749935,143.08,143.05,24.4667]
[1728143746467,1.74749935,143.08,143.05,17.4762]
[1728143748044,8.73659935,143.08,143.05,17.4762]
[1728143748270,8.73659935,143.08,143.04,6.9909]
[1728143748768,23.776884,143.07,143.04,6.9909]
[1728143749072,1.74771613,143.06,143.04,6.9909]
[1728143758364,25.52457866,143.07,143.04,6.9909]
[1728143759283,23.776884,143.07,143.04,6.9909]
[1728143760461,1.74767162,143.06,143.04,6.9909]
[1728143760775,1.7476834,143.08,143.05,6.9905]
[1728143761581,1.7476834,143.08,143.06,6.9899]
[1728143761780,1.74745954,143.09,143.06,6.9899]
[1728143764659,6.9875,143.12,143.07,6.9894]
[1728143764864,1.74725395,143.11,143.07,6.9894]
[1728143766665,1.74725395,143.11,143.06,67.4746]
[1728143766666,23.776884,143.1,143.06,17.4746]
[1728143766863,1.74747516,143.09,143.05,6.9904]
[1728143767478,23.776884,143.08,143.03,67.4781]
[1728143767792,1.74759405,143.07,143.03,67.4781]
[1728143767986,1.74759405,143.07,143.03,74.4694]
[1728143768488,1.74759405,143.07,143.03,24.4694]
[1728143774669,1.74759405,143.07,143.03,17.4781]
[1728143774875,1.74759405,143.07,143.04,6.9909]
[1728143776083,1.74767907,143.08,143.05,6.9903]
[1728143777199,1.74746068,143.09,143.05,6.9903]
[1728143777696,6.9877,143.11,143.06,6.99]
[1728143777896,1.7472834,143.1,143.06,6.99]
[1728143778708,8.7353834,143.1,143.06,6.99]
[1728143778989,1.74733744,143.09,143.06,6.99]
[1728143781087,6.9877,143.11,143.06,56.99]
[1728143781398,1.74720611,143.1,143.06,6.99]
[1728143782400,6.9882,143.1,143.05,74.466]
[1728143782583,1.74733588,143.09,143.05,74.466]